Cogmind - Beta 15 @@@ ROGUE MODE // 2025.07.05 @ 23:38:47 Player: CSF Result: Destroyed by Y-45 Defender with Beam Rifle Performance ------------- Evolutions (1) 500 Regions Visited (4) 800 Robots Destroyed (115) 575 Value Destroyed (2920) 2920 Prototype IDs (3) 60 Alien Tech Used (0) 0 Bonus (557) 557 TOTAL SCORE: 5412 Bonus ------- High Alert Combat Kills 74 Follower Combat Kills 483 Cogmind --------- Core Integrity 0/400 Matter 252/300 Energy 265/265 System Corruption 0% Temperature Cool (13) Movement Treading (235) Ox1 Location -9/Storage Parts ------- > --- POWER (1) -------- Improved Ion Engine > --- PROPULSION (3) --- Light Treads Light Treads Advanced Treads > --- UTILITY (3) ------ Huge Storage Unit Structural Scanner Light Armor Plating > --- WEAPON (2) ------- Improved Assault Rifle Improved Assault Rifle > --- INVENTORY (25) --- Light Nuclear Core Light Treads Light Treads Light Treads Light Treads Compact Wheel Improved Flight Unit Improved Flight Unit Improved Flight Unit Improved Flight Unit Improved Flight Unit Improved Flight Unit Improved Flight Unit Improved Flight Unit Medium Storage Unit Large Storage Unit Sensor Array Signal Interpreter Improved Terrain Scanner Seismic Detector Hacking Suite Hacking Suite Improved Assault Rifle Precision Rocket Launcher Heavy Hammer Peak State ------------ > --- POWER ------------ Light Nuclear Core > --- PROPULSION ------- Light Treads Improved Treads Advanced Treads > --- UTILITY ---------- Huge Storage Unit Structural Scanner Light Armor Plating > --- WEAPON ----------- Improved Assault Rifle Precision Rocket Launcher > --- INVENTORY -------- Light Nuclear Core Light Treads Light Treads Light Treads Compact Wheel Flight Unit VTOL Module Improved Flight Unit Improved Flight Unit Improved Flight Unit Improved Flight Unit Improved Flight Unit Medium Storage Unit Large Storage Unit High-capacity Storage Unit Sensor Array Signal Interpreter Improved Terrain Scanner Seismic Detector Light Armor Plating Hacking Suite Medium Laser Heavy Assault Rifle Rocket Launcher Heavy Hammer [Rating: 25] Favorites ----------- Power Improved Ion Engine Engine Improved Ion Engine Power Core Light Nuclear Core Propulsion Advanced Treads Treads Advanced Treads Leg Aluminum Leg Wheel Compact Wheel Flight Unit Improved Flight Unit Utility Structural Scanner Device Structural Scanner Storage Huge Storage Unit Protection Light Armor Plating Weapon Heavy Assault Rifle Energy Gun Medium Laser Ballistic Gun Heavy Assault Rifle Ballistic Cannon Light Cannon Launcher Precision Rocket Launcher Impact Weapon Heavy Hammer Build | -11 -10 -10 -9 -9 ------- Run | Yrd Mat Min Mat Sto Slots Evolved 2 | . . . 2 . Power . | . . . . . Propulsion 1 | . . . 1 . Utility 1 | . . . 1 . Weapon . | . . . . . Parts Attached 78 | 3 29 1 29 16 Power 12 | . 6 . 5 1 Engine 8 | . 4 . 3 1 Core 4 | . 2 . 2 . Reactor . | . . . . . Propulsion 27 | . 10 . 10 7 Treads 22 | . 6 . 9 7 Leg 3 | . 3 . . . Wheel 1 | . 1 . . . Hover . | . . . . . Flight 1 | . . . 1 . Utility 19 | 2 8 . 8 1 Device 8 | 2 5 . 1 . Storage 5 | . 3 . 2 . Processor . | . . . . . Hackware . | . . . . . Protection 6 | . . . 5 1 Artifact . | . . . . . Weapon 20 | 1 5 1 6 7 Energy Gun 4 | . 2 . 2 . Energy Cannon . | . . . . . Ballistic Gun 11 | 1 2 1 3 4 Ballistic Cannon 2 | . . . . 2 Launcher 1 | . . . . 1 Special Weapon . | . . . . . Impact Weapon 2 | . 1 . 1 . Slashing Weapon . | . . . . . Piercing Weapon . | . . . . . Special Melee Weapon . | . . . . . Unidentified Prototypes 3 | . . . 2 1 Parts Lost 8 | . 5 . 2 1 Power 3 | . 2 . . 1 Propulsion 1 | . 1 . . . Utility 3 | . 1 . 2 . Weapon 1 | . 1 . . . Highest Loss Streak 3 | . 3 . 1 1 To Critical Strikes . | . . . . . Average Backups 20 | 6 12 15 23 24 Power 1 | 1 1 1 . . Propulsion 8 | 4 3 4 9 12 Utility 8 | . 5 8 9 8 Weapon 3 | 1 2 2 3 3 Tool/Special . | . . . . . Unused Backups 32 | . 9 . 5 18 Power . | . . . . . Propulsion 17 | . 4 . 2 11 Utility 10 | . 4 . 2 4 Weapon 5 | . 1 . 1 3 Tool/Special . | . . . . . Average Slot Usage (%) 99 | . 98 100 99 98 Engine 8 | . 9 14 8 6 Core 2 | . 4 . 2 3 Treads 27 | . 12 28 32 33 Leg 3 | . 13 . . . Device 12 | . 13 14 12 11 Storage 11 | . 14 14 11 11 Protection 7 | . . . 9 11 Energy Gun 5 | . 4 . 8 . Ballistic Gun 16 | . 22 28 13 16 Peak Build Rating 25 | 9 10 9 23 25 Average Rating 16 | 6 8 8 19 19 On Entrance 10 | 6 7 8 9 20 Naked Turns . | . . . . . Heaviest Build 100 | 13 30 29 97 100 Greatest Support 67 | 20 40 40 67 65 Greatest Overweight (x) 2 | . 1 . 2 2 Average Overweight (x) . | . . . . 1 Largest Inventory Capacity 25 | 8 15 15 25 25 Average Capacity 21 | 8 14 15 24 25 Most Carried 25 | 7 15 15 25 25 Average Carried 20 | 6 12 15 23 24 Final Capacity 25 | 8 15 15 25 25 Final Carried 25 | 7 15 15 25 25 Class Distribution -------------------- 66% | Mutant 28% | Scavenger-Mutant 4% | Commander-Mutant Dominant Class ---------------- Mutant | -10/Materials Mutant | -10/Mines Mutant | -9/Materials Scavenger-Mutant | -9/Storage Resources | -11 -10 -10 -9 -9 ----------- Run | Yrd Mat Min Mat Sto Matter Collected 2772 | 243 809 . 1085 635 Remotely . | . . . . . Salvage Created 4482 | 123 1103 . 2175 1081 Parts 283 | 10 73 . 138 62 Haulers Intercepted 9 | . 2 . 5 2 Recyclers Shooed 8 | 1 3 . 3 1 Parts Field Recycled . | . . . . . Retrieved Matter . | . . . . . Parts Self-Destructed . | . . . . . Prevented . | . . . . . Kills | -11 -10 -10 -9 -9 ------- Run | Yrd Mat Min Mat Sto Combat Hostiles Destroyed 74 | . 18 . 39 17 Guns 66 | . 18 . 39 9 Cannons 8 | . . . . 8 Classes Destroyed 12 | 2 7 . 3 . Worker 5 | . 1 . 2 2 Builder 4 | . 3 . 1 . Tunneler 4 | 2 2 . . . Hauler 9 | . 2 . 5 2 Recycler 7 | 1 2 . 2 2 Operator 3 | . 1 . 1 1 Watcher 9 | . 3 . 5 1 Swarmer 10 | . 3 . 7 . Grunt 46 | . 15 . 21 10 Brawler 2 | . . . 1 1 Duelist 1 | . . . 1 . Sentry 15 | . . . 9 6 Best Kill Streak 4 | 2 4 . 4 4 Combat Bots Only 4 | . 3 . 3 4 Max Kills in Single Turn 2 | 1 1 . 2 1 Gunslinging . | . . . . . Exploded . | . . . . . Melee . | . . . . . Uniques/NPCs Destroyed . | . . . . . Combat | -11 -10 -10 -9 -9 -------- Run | Yrd Mat Min Mat Sto Hostile Shots Fired 380 | . 102 2 197 79 Missed 103 | . 23 . 63 17 Hits 277 | . 79 2 134 62 Melee 8 | . . . 8 . Projectile 269 | . 79 2 126 62 Critical Strikes 7 | . 1 . 6 . Damage Taken 3677 | . 1015 31 1762 869 Core 582 | . 158 15 226 183 Absorbed by Shields . | . . . . . Regen/Repaired (Parts) 318 | . 105 . 213 . Core Remaining (%) 65 | 100 . 30 . . Volleys Fired 357 | 12 113 . 163 69 Largest 2 | 2 2 . 2 2 Hottest 73 | 60 60 . 73 73 Shots Fired 709 | 24 224 . 323 138 Gun 682 | 24 224 . 323 111 Cannon 27 | . . . . 27 Launcher . | . . . . . Special . | . . . . . Kinetic 557 | 21 195 . 204 137 Thermal 117 | . 14 . 102 1 Explosive . | . . . . . Electromagnetic 35 | 3 15 . 17 . Robot Hit Streak 18 | 8 13 . 16 18 Robot Miss Streak 5 | 2 5 . 4 3 Penetration Max . | . . . . . Secondary Targets 7 | . 3 . 3 1 Max Gunslinging Chain 1 | . 1 . 1 1 Shots Hit Robots 468 | 16 137 . 214 101 Core Hits 203 | 7 65 . 93 38 Critical Kills . | . . . . . Critical Parts Destroyed 4 | . . . 1 3 Critical Strikes 11 | . 1 . 5 5 Burn 4 | . . . 4 . Destroy 4 | . . . 1 3 Blast 2 | . . . . 2 Corrupt 1 | . 1 . . . Melee Attacks 21 | . 7 . 8 6 Impact 21 | . 7 . 8 6 Slashing . | . . . . . Piercing . | . . . . . Sneak Attacks 2 | . . . . 2 Combat Hostiles . | . . . . . Follow-up Attacks . | . . . . . Damage Inflicted 6489 | 138 1373 . 3135 1843 Guns 5903 | 138 1320 . 3135 1310 Cannons 347 | . . . . 347 Explosions 53 | . 53 . . . Melee 186 | . . . . 186 Ramming . | . . . . . Kinetic 4889 | 113 1087 . 2032 1657 Thermal 1015 | . 172 . 843 . Explosive . | . . . . . Electromagnetic 399 | 25 114 . 260 . Impact 186 | . . . . 186 Slashing . | . . . . . Piercing . | . . . . . Highest Corruption . | . . . . . Average Corruption . | . . . . . Corruption Purged . | . . . . . Corruption Blocked . | . . . . . Overload Shots . | . . . . . Overflow Damage 68 | . . . . 68 Projectiles . | . . . . . Explosions . | . . . . . Melee 68 | . . . . 68 Knockbacks 1 | . . . . 1 Impact . | . . . . . Kinetic 1 | . . . . 1 Secondary . | . . . . . Self-Inflicted Damage . | . . . . . Shots . | . . . . . Rammed . | . . . . . Targets Rammed . | . . . . . Kicked . | . . . . . Crushed . | . . . . . Highest Temperature 189 | 40 74 . 189 20 Average Temperature 38 | 21 21 . 48 7 Received Heat Transfer 1596 | . 543 9 627 417 Siege Activations . | . . . . . Martial Activations . | . . . . . Shielding Activations . | . . . . . Robots Disrupted . | . . . . . Combat Hostiles . | . . . . . Robots Corrupted . | . . . . . Combat Hostiles . | . . . . . Parts Fried 2 | . . . 2 . Impact Corruptions 1 | . . . . 1 Robots Melted . | . . . . . Combat Hostiles . | . . . . . Parts Melted 4 | . 1 . 3 . Heat Transferred 2989 | . 325 . 2664 . Parts Sabotaged . | . . . . . Parts Stolen . | . . . . . Parts Stripped . | . . . . . Power Chain Reactions 1 | . 1 . . . Alert | -11 -10 -10 -9 -9 ------- Run | Yrd Mat Min Mat Sto Maximum Alert Level 2 | . . . 2 2 Low Security (%) 58 | 100 100 100 51 16 Level 1 28 | . . . 27 66 Level 2 13 | . . . 20 16 Level 3 . | . . . . . Level 4 . | . . . . . Level 5 . | . . . . . High Security . | . . . . . Max Security . | . . . . . Peak Influence 537 | 5 126 20 487 537 Initial 203 | . 3 20 . 203 Average 180 | 1 40 4 227 271 Influence Increases 2906 | 15 605 . 1168 1118 Destroy 0b10 Robot/C 1820 | . 360 . 780 680 Destroy 0b10 Robot/NC 205 | 15 70 . 80 40 Destroy Leader 466 | . 90 . 190 186 Allied During Kill 141 | . . . . 141 Successful Hack 72 | . 16 . 32 24 Disable Machine 60 | . 15 . 15 30 Destroy Structure 22 | . 9 . 11 2 Lose Combat Pursuer 120 | . 45 . 60 15 Influence Decreases 2369 | 10 557 53 686 1063 Entered New Map 314 | . 2 33 . 279 Time Decay 1775 | 10 505 20 666 574 Lost Part 80 | . 50 . 20 10 Lost Ally 200 | . . . . 200 Squads Dispatched 14 | . 3 . 4 7 Investigation 5 | . 1 . 3 1 Extermination . | . . . . . Reinforcement 5 | . 2 . 1 2 Assault 3 | . . . . 3 Garrison 1 | . . . . 1 Intercept . | . . . . . Searches Triggered . | . . . . . Construction Impeded . | . . . . . Haulers Reinforced . | . . . . . Active Scanning Responses . | . . . . . Cargo Convoy Interrupts . | . . . . . Stealth | -11 -10 -10 -9 -9 --------- Run | Yrd Mat Min Mat Sto Distress Signals 8 | . 1 . 3 4 Communications Jammed . | . . . . . Distress Signals . | . . . . . Times Spotted 133 | . 33 1 56 43 Peak Tracking Total 9 | . 4 1 4 9 Tactical Retreats 7 | . 3 . 3 1 Traps | -11 -10 -10 -9 -9 ------- Run | Yrd Mat Min Mat Sto Traps Triggered 3 | . . . 1 2 Indirectly . | . . . . . Trap Hack Attempts . | . . . . . Triggered . | . . . . . Disarmed . | . . . . . Reprogrammed . | . . . . . Reused . | . . . . . Traps Extracted . | . . . . . Installed . | . . . . . Triggered . | . . . . . Machines | -11 -10 -10 -9 -9 ---------- Run | Yrd Mat Min Mat Sto Machines Disabled 4 | . 1 . 1 2 Max in Single Turn 1 | . 1 . 1 1 Machines Repaired . | . . . . . Machines Dismantled . | . . . . . Machines Sabotaged . | . . . . . Overloaded Fab Kills . | . . . . . Hacking | -11 -10 -10 -9 -9 --------- Run | Yrd Mat Min Mat Sto Machines Accessed 22 | . 8 . 6 8 Terminals 17 | . 6 . 3 8 Fabricators . | . . . . . Repair Stations 3 | . 1 . 2 . Recycling Units 2 | . 1 . 1 . Scanalyzers . | . . . . . Garrison Access . | . . . . . Total Hacks 73 | . 27 . 22 24 Successful 37 | . 14 . 13 10 Failed 36 | . 13 . 9 14 Catastrophic 9 | . 4 . 4 1 Database Lockouts . | . . . . . Manual 36 | . 16 . 10 10 Terminals 58 | . 22 . 12 24 Fabricators . | . . . . . Repair Stations 11 | . 4 . 7 . Recycling Units 4 | . 1 . 3 . Scanalyzers . | . . . . . Garrison Access . | . . . . . Terminal Hacks 25 | . 9 . 7 9 Record 3 | . . . 1 2 Robot Analysis 4 | . 2 . 2 . Open Door 4 | . . . . 4 Branch Access Points 4 | . 1 . 1 2 Locate Traps 3 | . 3 . . . Recall Reinforcements 2 | . 1 . 1 . Hauler Manifests 3 | . 1 . 2 . Zone Layout 2 | . 1 . . 1 Fabricator Hacks . | . . . . . Repair Station Hacks 9 | . 4 . 5 . Scan Component 5 | . 2 . 3 . Repair 4 | . 2 . 2 . Recycling Unit Hacks 1 | . 1 . . . Retrieve Components 1 | . 1 . . . Scanalyzer . | . . . . . Garrison Access Hacks . | . . . . . Unauthorized Hacks 2 | . . . 1 1 Terminals 1 | . . . . 1 Botnet 1 | . . . . 1 Fabricators . | . . . . . Repair Stations . | . . . . . Recycling Units 1 | . . . 1 . Reject 1 | . . . 1 . Scanalyzers . | . . . . . Garrison Access . | . . . . . Data Cores Recovered . | . . . . . Used . | . . . . . Hacking Detections 16 | . 6 . 4 6 Full Trace Events 3 | . 1 . 1 1 Feedback Events . | . . . . . Feedback Blocked . | . . . . . Robot Schematics Acquired . | . . . . . Robots Built . | . . . . . Authchips . | . . . . . Time . | . . . . . Total Robot Build Rating . | . . . . . Part Schematics Acquired . | . . . . . Parts Built . | . . . . . Authchips . | . . . . . Time . | . . . . . Total Part Build Rating . | . . . . . Parts Repaired 4 | . 2 . 2 . Time 122 | . 52 . 70 . Parts Recycled . | . . . . . Recycled Matter . | . . . . . Retrieved Matter . | . . . . . Retrieved Components 10 | . 10 . . . Parts Scanalyzed . | . . . . . Part Schematics Acquired . | . . . . . Parts Damaged . | . . . . . Bothacking | -11 -10 -10 -9 -9 ------------ Run | Yrd Mat Min Mat Sto Used RIF Installer . | . . . . . Robots Hacked . | . . . . . Non-combat . | . . . . . Combat . | . . . . . Robot Hacks Applied . | . . . . . Relay Couplers Released . | . . . . . Fabnet Peak Effective % . | . . . . . Robots Rewired . | . . . . . Allies Hacked . | . . . . . Hacks Repelled . | . . . . . Allies | -11 -10 -10 -9 -9 -------- Run | Yrd Mat Min Mat Sto Total Allies 12 | . . . . 12 Largest Group 10 | . . . . 10 Highest-Rated Group 118 | . . . . 118 Highest-Rated Ally 31 | . . . . 31 Total Orders . | . . . . . Ally Attacks 110 | . . . . 110 Total Damage 1112 | . . . . 1112 Kills 19 | . . . . 19 Allies Corrupted . | . . . . . Allies Melted . | . . . . . Intel | -11 -10 -10 -9 -9 ------- Run | Yrd Mat Min Mat Sto Active Infowar (turns) 7506 | 38 2023 138 3559 1748 Sensors 23 | . 23 . . . Terrain 504 | 8 . . 496 . Structural 6399 | . 954 138 3559 1748 Seismic 1076 | 30 1046 . . . Robot Analysis Total 4 | . 2 . 2 . Derelict Logs Recovered . | . . . . . Drone Launches . | . . . . . Drone Recoveries . | . . . . . Exploration | -11 -10 -10 -9 -9 ------------- Run | Yrd Mat Min Mat Sto Turns Passed 7570 | 72 2052 138 3560 1748 Spaces Moved 2915 | 29 931 86 1266 603 Core . | . . . . . Treads 2320 | . 365 86 1266 603 Legs 464 | 29 435 . . . Wheels 131 | . 131 . . . Hover . | . . . . . Flight . | . . . . . Fastest Speed 100 | 120 100 160 145 235 Average Speed 203 | 120 166 160 219 235 Slowest Speed 312 | 120 240 160 305 312 Overloaded Moves . | . . . . . Propulsion Burnouts . | . . . . . Robots Hopped . | . . . . . Potential Cave-ins . | . . . . . Cave-ins Triggered . | . . . . . Exploration Rate (%) 59 | 3 95 25 94 82 Regions Visited 4 Branch Regions 2 Pre-discovered Areas 1 | . . . . 1 Known Exits Taken 2 | . 1 . 1 . Unknown Exits Taken 2 | 1 . 1 . . Scrap Searched . | . . . . . Spaces Dug 9 | . 4 . 4 1 Terrain Destroyed 13 | . 8 . 4 1 Melee 9 | . 4 . 4 1 Projectile . | . . . . . AOE 4 | . 4 . . . Terrain Rammed . | . . . . . Walls Destroyed . | . . . . . Machines Disabled . | . . . . . Actions | -11 -10 -10 -9 -9 --------- Run | Yrd Mat Min Mat Sto Total 3858 | 45 1226 87 1712 788 Wait 304 | . 88 . 161 55 Move 2911 | 28 930 85 1265 603 Hop . | . . . . . Pick Up 63 | 1 25 . 31 6 Fast Attach 31 | 2 8 1 10 10 Attach 25 | . 9 . 13 3 Detach 5 | . . . 3 2 Swap 60 | 1 23 . 24 12 Drop 79 | 1 23 1 34 20 Fire 357 | 12 113 . 163 69 Melee 21 | . 7 . 8 6 Ram . | . . . . . Kick . | . . . . . Crush . | . . . . . Escape Stasis 2 | . . . . 2 Rewire . | . . . . . Trap . | . . . . . Miscellaneous . | . . . . . Route ------- -11/Scrapyard -10/Materials (discovered 4 exits: *Mat x3 / *Min) -10/Mines -9/Materials (discovered 7 exits: [*Mat x3] / *Min x2 / *Sto x2) -9/Storage (discovered 2 exits: [*Mat] / *Rec) History --------- Turn | Location | Event 1 | -11/Scrapyard | Discovered new exit (range 3) 73 | -11/Scrapyard | Entered Materials 313 | -10/Materials | Build established: Mutant 381 | -10/Materials | Discovered new exit (range 9) 520 | -10/Materials | Identified exit to Mines 687 | -10/Materials | Lost 3 parts (1p1n1w) 772 | -10/Materials | Discovered new exit (range 10) 925 | -10/Materials | Repaired Lgt. Assault Rifle 952 | -10/Materials | Repaired EM Pulse Gun 1074 | -10/Materials | Core integrity fell below 50% 1110 | -10/Materials | Discovered new exit (range 3) 1838 | -10/Materials | Discovered new exit (range 14) 2125 | -10/Materials | Entered Mines 2138 | -10/Mines | Joined a pair of Derelicts in attacking an 0b10 outpost 2251 | -10/Mines | Discovered new exit (range 7) 2263 | -10/Mines | Entered Materials 2263 | -9/Materials | Evolved 2 slots: Propulsion x1, Utility x1 2526 | -9/Materials | Identified exit to Mines 2526 | -9/Materials | Identified exit to Storage 2595 | -9/Materials | Discovered new exit (range 15) 3151 | -9/Materials | Discovered new exit (range 8) 4669 | -9/Materials | Discovered new exit (range 7) 5020 | -9/Materials | Repaired Adv. Treads 5055 | -9/Materials | Repaired Imp. Treads 5152 | -9/Materials | Build established: Scavenger-Mutant 5421 | -9/Materials | Core integrity fell below 50% 5823 | -9/Materials | Entered Storage 5838 | -9/Storage | Identified exit to Recycling 6046 | -9/Storage | Build established: Mutant 6508 | -9/Storage | Core integrity fell below 20% 6576 | -9/Storage | Learned location of Armory (-4) 6815 | -9/Storage | Assisted by bots powering up and referring to "LRC-V3" 6815 | -9/Storage | Build established: Scavenger-Mutant 7048 | -9/Storage | Discovered new exit (range 15) 7115 | -9/Storage | Build established: Commander-Mutant 7227 | -9/Storage | Met a pair of Derelict thieves 7316 | -9/Storage | Lost 5 allies 7423 | -9/Storage | First assault squad dispatched 7481 | -9/Storage | Build established: Scavenger-Mutant 7515 | -9/Storage | Used back door to open Recycling access 7546 | -9/Storage | Lost 3 allies 7548 | -9/Storage | Garrison activated, responded to threat 7571 | -9/Storage | Destroyed by Y-45 Defender with Beam Rifle Last Messages --------------- 07423_ ALERT: Unidentified disturbance in Zone 2B, assault force dispatched. 07472_ Connecting with Door Terminal... >>Open(Door) Sealed Heavy Doors opened. 07492_ Mercenary 2h destroyed. 07515_ Connecting with Door Terminal... 07515_ Access granted. >>\\IAMDERELICT Access granted. 07533_ K-01 Serf collects debris. 07548_ G-34 Mercenary calls for garrison reinforcements. 07548_ ALERT: Activating Garrison Access S001. 07548_ G-34 Mercenary destroyed. 07551_ G-47 Trooper suffers critical hit (Destroy). 07551_ Destroyed Aluminum Leg. 07569_ Destroyed Lgt. Nuclear Core. 07569_ G-47 Trooper destroyed. Map ----- +----------------------------------------------------+ | | | | | | | | | #####???????????????????????????? | | #####???????????????????????????? | | ! !##???????????????????????????? | | !!##???#####???????????????????? | | ##???#####???????????????????? | | !##???"""#######??????????????? | | "###???"Y"#######??????????????? | | ##?? %[##??????????????? | | ### ###?#######??????? | | +##### ##??#######??????? | | # ##??## ##??????? | | / ##???? > ###?????? | | % # """"" ##???? ###?????? | | ## """"? ##??## ##?????? | | ## """""?????### ##??????? | | #################T ##??????? | | ### ################## ##??????? | | ### ##???????##! !#### ####????? | | ?## ##???????##! !#### #######?? | | ### ####?????##! !#### [#T#####?? | | ###+####?????##! !#### %Y="[[##?? | | ##?????### ##### #@ [[##?? | | ######### T### # "[[##?? | | = #########/###### #######?? | | + =%* [=%=*[= #######?? | | " [[[ # %! =[/%%=[! ##??????? | | " [[ ###+#########+######??????? | | " [[ ## ## *% ##??????? | | ## !## "???????????? | | ######## ## ! ""??????????? | | # ? # ""??????????? | | ?????? # ##= ?????????? | | ?????? # ? ## """?????????? | | ?????? # ? ## "???????????? | | ?????? # |? ## "???????????? | | ??????## [ ## ??????????? | | ??????#####/######/###??????????? | | ?????? #### ###??????????? | | ??????????? ???##+#????????????? | | ??????????? ????? ????????????? | | ????????????????????????????????? | | ????????????????????????????????? | | ????????????????????????????????? | | ????????????????????????????????? | | ????????????????????????????????? | | ????????????????????????????????? | +----------------------------------------------------+ Best States ------------- Heat Dissipation 35 Energy Generation 14 Energy Capacity 265 Matter Stores 300 Matter Capacity 300 Sight Range 16 Robot Scan Range 14 Terrain Scan Range 16 Terrain Scan Density 10 Armor Coverage 150 Evasion (%) 55 Recoil Reduction 3 Item Schematics ----------------- None Robot Schematics ------------------ None Fabricated ------------ Nothing Repaired ---------- Lgt. Assault Rifle | 8% | -10/Materials EM Pulse Gun | 28% | -10/Materials Adv. Treads | 21% | -9/Materials Imp. Treads | 48% | -9/Materials Alien Tech Used ----------------- None Achievements -------------- None Challenges ------------ None Game ------ Seed NovaGrenadeWeb Manual? 0 Play Time 01:05:35 Cumulative 10.0 hours Start 2025.07.05 @ 22:29:38 End 2025.07.05 @ 23:38:47 Sessions 1 Manual Loads 0 Difficulty Rogue Special Mode None Game No. 6 Rogue 6 Adventurer 0 Explorer 0 Win Type - Total 1 Types 1/0/0/0/0/0/0/0/0/0 Lore% 17 Gallery% 9 Achievement% 23 Wizard Run 0 Options --------- Layout 1 ASCII 0 Keyboard 0 Movement Mouse Keybinds 0 Fullscreen 1 Font 24/Smallcaps Map View 50x35 Zoom Use 0% Tactical HUD 1 Map Filters NONE Filters NONE Steam 1 RUN: a57c8a1d-0a55-418b-8845-aa3db8818f22